Cogmind - Beta 14 *** ADVENTURER MODE // 2024.09.11 @ 19:48:47 Player: Ms. V3-11A Result: Destroyed by P-70 Sage with High-powered Shock Rifle Performance ------------- Evolutions (5) 2500 Regions Visited (13) 2600 Robots Destroyed (221) 1105 Value Destroyed (10055) 10055 Prototype IDs (44) 880 Alien Tech Used (0) 0 Bonus (2175) 2175 TOTAL SCORE: 19315 Bonus ------- Triggered High Security 500 High Alert Combat Kills 2906 Follower Combat Kills 2412 Network Hubs Disabled 400 Registered with UFD 300 Built Enhanced Grunts 300 A7 Reached Mainframe 300 Met R17 at Cetus 500 Friendly Fire -5443 Cogmind --------- Core Integrity 0/1000 Matter 186/300 Energy 100/100 System Corruption 14% Temperature Cool (0) Movement Core (50) Location -5/Factory Parts ------- > --- POWER (2) -------- (None) > --- PROPULSION (4) --- (None) > --- UTILITY (8) ------ Advanced Targeting Computer Graphene Brace Advanced Hacking Suite A0-MCA's Component Scanner > --- WEAPON (3) ------- (None) > --- INVENTORY (5) ---- Neutrino Core High-capacity Storage Unit Layered Heavy Armor Plating Improved Plasma Cutter Peak State ------------ > --- POWER ------------ Quantum Reactor Quantum Reactor > --- PROPULSION ------- Centrium Heavy Treads Centrium Heavy Treads > --- UTILITY ---------- Advanced Cooling System Huge Storage Unit Machine Analyzer Advanced Targeting Computer Centrium Medium Armor Plating Force Field Advanced Hacking Suite A0-MCA's Component Scanner > --- WEAPON ----------- Wave Gun Advanced KE Penetrator Advanced KE Penetrator > --- INVENTORY -------- Centrium Heavy Treads Centrium Heavy Treads Centrium Heavy Treads Improved Cooling System Advanced Cooling System High-capacity Storage Unit Energy Well Advanced Energy Well Centrium Medium Armor Plating Centrium Medium Armor Plating Light Regenerative Plating Improved Hacking Suite Improved Hacking Suite Improved System Shield Improved System Shield Advanced Variable Charge Gun Ion Burst Cannon KE Penetrator Precision Rocket Launcher Plasma Cutter Power Maul [Rating: 133] Favorites ----------- Power Cooled Ion Engine Engine Cooled Ion Engine Power Core Fission Core Reactor Quantum Reactor Propulsion Light Treads Treads Light Treads Leg Aluminum Leg Utility Huge Storage Unit Device Improved Heat Sink Storage Huge Storage Unit Processor A0-MCA's Component Scanner Hackware Advanced Hacking Suite Protection Centrium Medium Armor Plating Weapon Advanced Beam Rifle Energy Gun Advanced Beam Rifle Energy Cannon Ion Burst Cannon Ballistic Gun Enhanced Autogun Launcher Improved Proton Missile Launcher Special Weapon Plasma Cutter Build | -11 -10 -10 -9 -8 -8 -8 -8 -6 -6 -6 -6 -6 -5 ------- Run | Yrd Mat Min Mat Mat Sto Rec Scr Fac Ext Cet Arc Hub Fac Slots Evolved 10 | . . . 2 2 . . . 4 . . . . 2 Power 1 | . . . . . . . . 1 . . . . . Propulsion 2 | . . . 1 1 . . . . . . . . . Utility 6 | . . . 1 1 . . . 3 . . . . 1 Weapon 1 | . . . . . . . . . . . . . 1 Parts Attached 191 | . 9 . 15 26 21 7 4 15 28 14 4 6 42 Power 22 | . 2 . 1 5 2 . . 1 3 2 . . 6 Engine 11 | . 2 . 1 2 2 . . 1 2 . . . 1 Core 6 | . . . . 3 . . . . 1 . . . 2 Reactor 5 | . . . . . . . . . . 2 . . 3 Propulsion 48 | . 3 . 7 4 8 3 2 2 11 2 . 3 3 Treads 34 | . . . . . 8 3 2 2 11 2 . 3 3 Leg 14 | . 3 . 7 4 . . . . . . . . . Wheel . | . . . . . . . . . . . . . . Hover . | . . . . . . . . . . . . . . Flight . | . . . . . . . . . . . . . . Utility 63 | . 3 . 3 10 4 3 2 11 9 2 3 . 13 Device 27 | . . . 2 5 1 . 1 3 6 1 2 . 6 Storage 3 | . 1 . . . . 1 . 1 . . . . . Processor 6 | . . . . 1 . 1 . 3 1 . . . . Hackware 2 | . . . . . . . . . . . . . 2 Protection 25 | . 2 . 1 4 3 1 1 4 2 1 1 . 5 Artifact . | . . . . . . . . . . . . . . Weapon 58 | . 1 . 4 7 7 1 . 1 5 8 1 3 20 Energy Gun 20 | . 1 . 2 7 5 . . . 1 . 1 . 3 Energy Cannon 6 | . . . . . 1 . . . . 3 . . 2 Ballistic Gun 19 | . . . 2 . . 1 . 1 2 2 . 2 9 Ballistic Cannon . | . . . . . . . . . . . . . . Launcher 9 | . . . . . 1 . . . . 2 . 1 5 Special Weapon 4 | . . . . . . . . . 2 1 . . 1 Impact Weapon . | . . . . . . . . . . . . . . Slashing Weapon . | . . . . . . . . . . . . . . Piercing Weapon . | . . . . . . . . . . . . . . Special Melee Weapon . | . . . . . . . . . . . . . . Unidentified Prototypes 6 | . . . 1 1 4 . . . . . . . . Corrupted Parts 9 | . . . . . . . . . . 5 . 4 . System Corruption 50 | . . . . . . . . . . 18 . 32 . Parts Lost 34 | . 2 . . 3 2 2 . 1 2 . 1 . 21 Power 6 | . 1 . . 1 . . . . . . . . 4 Propulsion 8 | . . . . . 2 . . . 2 . . . 4 Utility 12 | . . . . 2 . 2 . 1 . . 1 . 6 Weapon 8 | . 1 . . . . . . . . . . . 7 Highest Loss Streak 9 | . 2 . . 1 1 1 . 1 2 . 1 . 9 To Critical Strikes 1 | . . . . . . . . . . . . . 1 Average Slot Usage (%) 95 | . 98 100 96 97 97 99 100 96 94 90 86 85 84 Engine 8 | . 13 14 11 4 9 9 9 13 11 2 . . 1 Reactor 2 | . . . . . . . . . . 8 13 13 8 Treads 18 | . . . . . 20 36 36 26 25 17 13 12 10 Leg 8 | . 28 28 31 35 14 . . . . . . . . Device 9 | . . . 9 16 17 12 9 7 6 6 12 13 10 Storage 8 | . 14 14 11 9 9 9 9 6 6 6 6 6 4 Processor 10 | . . . . 1 . 4 9 19 21 26 20 20 15 Protection 8 | . 13 14 10 8 7 8 9 8 6 6 6 6 6 Energy Gun 8 | . 11 14 11 14 18 9 9 6 6 1 5 6 2 Ballistic Gun 7 | . 15 14 11 2 . 9 9 6 4 6 6 5 9 Peak Build Rating 133 | 6 8 9 16 30 32 32 40 66 67 118 120 120 133 Average Rating 52 | 6 7 8 13 24 29 30 34 58 62 93 118 119 124 On Entrance 47 | 6 6 8 9 16 30 32 31 40 66 64 118 120 120 Naked Turns . | . . . . . . . . . . . . . . Heaviest Build 155 | 12 29 29 33 45 45 101 101 119 132 143 147 149 155 Greatest Support 160 | 20 20 20 30 46 80 80 88 90 90 160 160 160 160 Greatest Overweight (x) 1 | . 1 1 1 1 1 1 1 1 1 1 . 1 . Average Overweight (x) . | . . 1 . . . . 1 1 1 . . . . Largest Inventory Capacity 25 | 8 15 15 15 15 15 25 25 25 25 25 25 25 25 Average Capacity 20 | 8 13 15 15 15 15 17 25 25 25 25 25 25 24 Most Carried 25 | 5 15 15 15 15 15 19 25 25 25 25 25 25 25 Average Carried 19 | 4 10 15 14 14 14 16 23 22 24 24 24 24 22 Final Capacity 25 | 8 15 15 15 15 15 25 25 25 25 25 25 25 5 Final Carried 25 | 2 15 15 15 15 15 19 25 25 25 25 25 25 5 Class Distribution -------------------- 34% | Mutant 34% | Scavenger-Mutant 19% | Commander-Mutant 10% | Scavenger-Tank Dominant Class ---------------- Scavenger-Mutant | -10/Materials Scavenger-Mutant | -10/Mines Scavenger-Mutant | -9/Materials Scavenger-Mutant | -8/Materials Scavenger-Mutant | -8/Storage Mutant | -8/Recycling Mutant | -8/Scraptown Mutant | -6/Factory Commander-Mutant | -6/Extension Commander-Mutant | -6/Cetus Commander-Mutant | -6/Archives Commander-Mutant | -6/Hub_04(d) Scavenger-Tank | -5/Factory Resources | -11 -10 -10 -9 -8 -8 -8 -8 -6 -6 -6 -6 -6 -5 ----------- Run | Yrd Mat Min Mat Mat Sto Rec Scr Fac Ext Cet Arc Hub Fac Matter Collected 4807 | 177 238 84 315 308 227 202 186 64 945 411 162 159 1329 Remotely . | . . . . . . . . . . . . . . Salvage Created 11094 | . 524 81 797 812 1417 782 . 418 1072 769 398 390 3634 Parts 516 | . 38 2 59 41 57 27 . 22 46 36 24 20 144 Haulers Intercepted 4 | . 1 . 2 . 1 . . . . . . . . Recyclers Shooed 9 | . . . 1 . 2 . . . 5 . . . 1 Parts Field Recycled . | . . . . . . . . . . . . . . Retrieved Matter . | . . . . . . . . . . . . . . Parts Self-Destructed . | . . . . . . . . . . . . . . Prevented . | . . . . . . . . . . . . . . Kills | -11 -10 -10 -9 -8 -8 -8 -8 -6 -6 -6 -6 -6 -5 ------- Run | Yrd Mat Min Mat Mat Sto Rec Scr Fac Ext Cet Arc Hub Fac Combat Hostiles Destroyed 190 | . 15 2 21 16 24 11 . 6 16 8 1 3 67 Melee 1 | . . . . . . . . . . . . . 1 Guns 145 | . 15 2 21 16 22 11 . 6 15 . 1 2 34 Cannons 20 | . . . . . . . . . . 1 . . 19 AOE 14 | . . . . . . . . . . 1 . 1 12 Classes Destroyed 18 | . 3 . 1 2 3 2 . 2 2 . 1 . 2 Worker 5 | . . . . . 1 . . . . . . 2 2 Builder 1 | . . . . . . . . . 1 . . . . Hauler 4 | . 1 . 2 . 1 . . . . . . . . Recycler 9 | . . . . . 3 3 . . 1 . . . 2 Mechanic 2 | . . . . . . . . 1 . . . . 1 Operator 8 | . . . . . . . . 1 . . 5 2 . Watcher 3 | . . . . . . . . . 1 2 . . . Swarmer 18 | . 5 . 7 . 3 . . . 3 . . . . Saboteur 2 | . . . . . . . . . . . . . 2 Grunt 84 | . 10 2 11 6 10 1 . 3 5 . . 2 34 Brawler 3 | . . . . . 1 . . . . . . . 2 Duelist 9 | . . . . 2 . . . . . . . . 7 Protector 4 | . . . . . . 2 . . . . . . 2 Sentry 38 | . . . 3 6 10 6 . . 6 . 1 1 5 Specialist 1 | . . . . . . . . . . . . . 1 Hunter 13 | . . . . 2 . . . 2 1 . . . 8 Programmer 10 | . . . . . . 2 . 1 . 1 . . 6 Cetus Guard 7 | . . . . . . . . . . 7 . . . Enhanced Grunt 1 | . . . . . . . . . . . 1 . . Scrapoid 1 | . . . . . . . . . . . 1 . . Thug 2 | . . . . . . . . . 1 . . 1 . Savage 1 | . . . . . . . . . . . . 1 . Best Kill Streak 12 | . 5 2 8 3 11 7 . 3 4 5 3 2 12 Combat Bots Only 10 | . 5 2 8 3 10 7 . 3 4 4 1 1 9 Max Kills in Single Turn 3 | . 2 1 2 1 2 1 . 1 2 2 1 3 3 Gunslinging 1 | . 1 . 1 . . . . . . . . . 1 Exploded 3 | . . . . . . . . . . 1 . 1 3 Melee 1 | . . . . . . . . . . . . . 1 Uniques/NPCs Destroyed 2 | . . . . . . . . . . 2 . . . Revision 17 (-6/Cetus) A7 (-6/Cetus) Combat | -11 -10 -10 -9 -8 -8 -8 -8 -6 -6 -6 -6 -6 -5 -------- Run | Yrd Mat Min Mat Mat Sto Rec Scr Fac Ext Cet Arc Hub Fac Hostile Shots Fired 1706 | . 99 15 88 88 92 53 . 74 311 19 11 55 801 Missed 490 | . 22 4 20 24 22 9 . 14 124 8 3 23 217 Damage Taken 13908 | . 646 112 530 817 773 501 . 817 1450 156 170 135 7801 Core 1659 | . 137 67 96 49 93 32 . 17 142 23 . 2 1001 Absorbed by Shields 1607 | . . . . . . . . . 54 93 . 140 1320 Reduced by Siege Mode 357 | . . . . . . . . . . . . . 357 Redirected to Shielding 149 | . 46 7 60 36 . . . . . . . . . Ignored by Resistances 4479 | . 207 34 172 231 225 139 . 229 467 68 46 90 2571 Regen/Repaired (Parts) 622 | . . . 203 281 12 . . . . . . . 126 Core Remaining (%) 68 | 100 . 18 76 . . . 68 . . . . 78 . Volleys Fired 589 | . 48 8 50 52 72 28 . 38 69 31 26 28 139 Largest 3 | . 2 2 2 2 2 2 . 2 2 2 2 2 3 Hottest 216 | . 60 60 79 117 122 86 . 91 105 120 120 116 216 Shots Fired 1212 | . 85 16 100 100 124 58 . 75 140 55 51 49 359 Gun 1059 | . 85 16 100 100 123 58 . 75 140 24 48 47 243 Cannon 128 | . . . . . . . . . . 23 3 . 102 Launcher 25 | . . . . . 1 . . . . 8 . 2 14 Special . | . . . . . . . . . . . . . . Kinetic 568 | . 70 8 50 26 . 29 . 38 69 24 27 26 201 Thermal 619 | . 15 8 50 74 123 29 . 37 71 23 24 21 144 Explosive 17 | . . . . . 1 . . . . . . 2 14 Electromagnetic 8 | . . . . . . . . . . 8 . . . Robot Hit Streak 37 | . 16 9 10 15 33 21 . 12 32 28 29 10 37 Robot Miss Streak 5 | . 2 1 2 2 1 1 . 2 3 1 1 1 5 Penetration Max 2 | . . . . . . . . . 2 1 1 . 1 Secondary Targets 17 | . 3 . 1 4 2 3 . 1 1 . . . 2 Max Gunslinging Chain 1 | . 1 . 1 1 1 1 . 1 1 . . . 1 Shots Hit Robots 916 | . 67 13 68 78 89 48 . 57 114 49 38 15 280 Core Hits 489 | . 29 5 28 34 41 17 . 21 49 31 19 13 202 Critical Kills 18 | . 1 . . . . . . . 1 . 4 1 11 Critical Parts Destroyed 22 | . . . . . . 1 . . 1 3 3 3 11 Critical Strikes 71 | . 1 . 2 4 10 2 . 1 9 3 8 6 25 Burn 27 | . . . 2 4 10 1 . 1 6 . . 2 1 Destroy 44 | . 1 . . . . 1 . . 3 3 8 4 24 Melee Attacks . | . . . . . . . . . . . . . . Impact . | . . . . . . . . . . . . . . Slashing . | . . . . . . . . . . . . . . Piercing . | . . . . . . . . . . . . . . Sneak Attacks . | . . . . . . . . . . . . . . Combat Hostiles . | . . . . . . . . . . . . . . Follow-up Attacks . | . . . . . . . . . . . . . . Damage Inflicted 27349 | . 821 158 1085 1370 2028 1033 . 1139 2682 2388 1162 1149 12334 Guns 17048 | . 821 158 1085 1370 2025 1014 . 1139 2679 595 1068 464 4630 Cannons 5204 | . . . . . . . . . . 680 94 . 4430 Explosions 5048 | . . . . . . . . . . 1113 . 685 3250 Melee . | . . . . . . . . . . . . . . Ramming 49 | . . . . . 3 19 . . 3 . . . 24 Kinetic 9324 | . 690 69 525 313 . 369 . 529 1364 595 639 294 3937 Thermal 13315 | . 131 89 560 1057 2025 645 . 610 1315 1067 523 170 5123 Explosive 3250 | . . . . . . . . . . . . . 3250 Electromagnetic 1411 | . . . . . . . . . . 726 . 685 . Impact . | . . . . . . . . . . . . . . Slashing . | . . . . . . . . . . . . . . Piercing . | . . . . . . . . . . . . . . Highest Corruption 51 | . . . . . . 2 . 1 1 19 19 51 13 Average Corruption 4 | . . . . . . 1 . 1 1 10 19 19 2 Corruption Purged . | . . . . . . . . . . . . . . Corruption Blocked . | . . . . . . . . . . . . . . Effects 153 | . . . . . . 19 . 2 27 48 17 18 22 Message Errors 34 | . . . . . . 6 . . 6 12 3 3 4 Matter Fused 34 | . . . . . . 3 . . 6 13 4 5 3 Heat Flow Errors 14 | . . . . . . . . . 1 5 . 3 5 Energy Discharges 19 | . . . . . . 4 . . 3 8 2 . 2 Parts Rejected 1 | . . . . . . . . . . . . . 1 Parts Fused 1 | . . . . . . 1 . . . . . . . Data Loss (minor) 19 | . . . . . . 2 . 1 6 5 2 2 1 Data Loss (major) 12 | . . . . . . 1 . 1 2 2 2 3 1 Misfires 9 | . . . . . . 2 . . 2 1 1 1 2 Alerts 5 | . . . . . . . . . 1 1 2 . 1 Weapon Failures 5 | . . . . . . . . . . 1 1 1 2 Overload Shots . | . . . . . . . . . . . . . . Overflow Damage 208 | . . . . . . . . . . . . 36 172 Projectiles 21 | . . . . . . . . . . . . . 21 Explosions 187 | . . . . . . . . . . . . 36 151 Melee . | . . . . . . . . . . . . . . Knockbacks . | . . . . . . . . . . . . . . Impact . | . . . . . . . . . . . . . . Kinetic . | . . . . . . . . . . . . . . Secondary . | . . . . . . . . . . . . . . Self-Inflicted Damage 315 | . . . . . . . . . . . . 76 239 Shots 8 | . . . . . . . . . . . . 1 7 Rammed 6 | . . . . . . 3 . . 1 . . . 2 Targets Rammed 9 | . . . . . 3 3 . . 1 . . . 2 Kicked 3 | . . . . . 3 . . . . . . . . Crushed . | . . . . . . . . . . . . . . Highest Temperature 315 | . 20 63 27 239 315 68 . 288 154 274 48 245 251 Average Temperature 60 | . 9 40 11 52 93 21 . 106 30 124 20 41 60 Received Heat Transfer 4224 | . 423 78 234 351 396 180 . 225 513 4 36 32 1752 Effects 11 | . . . . 3 7 . . . . . . . 1 Energy Bleed 1 | . . . . . . . . . . . . . 1 Interference 10 | . . . . 3 7 . . . . . . . . Siege Activations 5 | . . . . . . . . . . . . . 5 Total Turns 157 | . . . . . . . . . . . . . 157 Longest Duration 63 | . . . . . . . . . . . . . 63 Robots Corrupted 7 | . . . . . . . . . . 6 . 1 . Combat Hostiles 6 | . . . . . . . . . . 6 . . . Parts Fried 5 | . . . . . . . . . . 5 . . . Impact Corruptions . | . . . . . . . . . . . . . . Robots Melted 4 | . . . . . 2 . . . 1 . . . 1 Combat Hostiles 4 | . . . . . 2 . . . 1 . . . 1 Parts Melted 50 | . . . 1 6 16 4 . 2 6 2 . 1 12 Heat Transferred 21068 | . 300 200 1396 2368 4255 1110 . 1184 2812 822 765 407 5449 Parts Sabotaged 2 | . . . . . . . . . . . . . 2 Parts Stolen . | . . . . . . . . . . . . . . Parts Stripped . | . . . . . . . . . . . . . . Power Chain Reactions 2 | . . . . . . . . . . 2 . . . Alert | -11 -10 -10 -9 -8 -8 -8 -8 -6 -6 -6 -6 -6 -5 ------- Run | Yrd Mat Min Mat Mat Sto Rec Scr Fac Ext Cet Arc Hub Fac Peak Influence 2374 | . 252 69 338 388 443 391 . 141 374 328 332 1283 2374 Initial 464 | . . 4 22 121 46 145 . . . 88 94 96 464 Average 290 | . 55 29 146 217 203 142 . 49 121 118 295 472 1215 Maximum Alert Level 5 | . 1 . 1 1 2 1 . . 1 1 1 4 5 Low Security (%) 62 | 100 92 100 74 40 50 75 . 100 75 82 8 35 . Level 1 23 | . 7 . 25 59 46 24 . . 24 17 91 9 9 Level 2 5 | . . . . . 2 . . . . . . 32 30 Level 3 1 | . . . . . . . . . . . . 20 8 Level 4 1 | . . . . . . . . . . . . 3 8 Level 5 4 | . . . . . . . . . . . . . 30 High Security 1 | . . . . . . . . . . . . . 11 Max Security . | . . . . . . . . . . . . . . Squads Dispatched 44 | . 2 . 3 2 1 . . 4 2 . . 4 26 Investigation 15 | . 2 . 2 2 1 . . 1 2 . . 1 4 Extermination 3 | . . . . . . . . 1 . . . . 2 Reinforcement 12 | . . . 1 . . . . 2 . . . 3 6 Assault 12 | . . . . . . . . . . . . . 12 Garrison 2 | . . . . . . . . . . . . . 2 Intercept . | . . . . . . . . . . . . . . Searches Triggered . | . . . . . . . . . . . . . . Construction Impeded 4 | . . . 1 . . . . . . . . 1 2 Haulers Reinforced 2 | . . . . . . . . . . . . . 2 Active Scanning Responses . | . . . . . . . . . . . . . . Cargo Convoy Interrupts 1 | . . . . . . . . . . . . . 1 Stealth | -11 -10 -10 -9 -8 -8 -8 -8 -6 -6 -6 -6 -6 -5 --------- Run | Yrd Mat Min Mat Mat Sto Rec Scr Fac Ext Cet Arc Hub Fac Distress Signals 20 | . 1 . 4 3 4 . . . 3 2 . 2 1 Communications Jammed . | . . . . . . . . . . . . . . Distress Signals . | . . . . . . . . . . . . . . Times Spotted 364 | . 29 2 33 30 32 10 . 7 38 15 19 24 125 Peak Tracking Total 21 | . 4 2 6 6 10 6 . 3 4 5 2 5 21 Tactical Retreats 21 | . 1 . 2 2 1 . . . 4 . . 2 9 Traps | -11 -10 -10 -9 -8 -8 -8 -8 -6 -6 -6 -6 -6 -5 ------- Run | Yrd Mat Min Mat Mat Sto Rec Scr Fac Ext Cet Arc Hub Fac Traps Triggered 11 | . . . . . . . . . 6 . . 1 4 Indirectly . | . . . . . . . . . . . . . . Trap Hack Attempts . | . . . . . . . . . . . . . . Triggered . | . . . . . . . . . . . . . . Disarmed . | . . . . . . . . . . . . . . Reprogrammed 5 | . 5 . . . . . . . . . . . . Reused 1 | . 1 . . . . . . . . . . . . Traps Extracted . | . . . . . . . . . . . . . . Installed . | . . . . . . . . . . . . . . Triggered 1 | . 1 . . . . . . . . . . . . Machines | -11 -10 -10 -9 -8 -8 -8 -8 -6 -6 -6 -6 -6 -5 ---------- Run | Yrd Mat Min Mat Mat Sto Rec Scr Fac Ext Cet Arc Hub Fac Machines Disabled 60 | . . . . 1 1 . . . 9 4 6 24 15 Max in Single Turn 5 | . . . . 1 1 . . . 1 1 2 5 2 Garrison Access 3 | . . . . 1 1 . . . . . . . 1 Network Hub 2 | . . . . . . . . . . . . 2 . Machines Repaired . | . . . . . . . . . . . . . . Machines Dismantled 8 | . . . . . . . . . 5 2 . . 1 Machines Sabotaged . | . . . . . . . . . . . . . . Overloaded Fab Kills . | . . . . . . . . . . . . . . Hacking | -11 -10 -10 -9 -8 -8 -8 -8 -6 -6 -6 -6 -6 -5 --------- Run | Yrd Mat Min Mat Mat Sto Rec Scr Fac Ext Cet Arc Hub Fac Machines Accessed 86 | . 9 . 9 9 15 15 2 3 13 2 . 1 8 Terminals 56 | . 8 . 7 6 11 6 . 1 12 2 . 1 2 Fabricators 1 | . . . . . . . . . . . . . 1 Repair Stations 6 | . 1 . 1 2 2 . . . . . . . . Recycling Units 13 | . . . . . 1 9 . . 1 . . . 2 Scanalyzers 4 | . . . 1 . . . . 1 . . . . 2 Garrison Access 4 | . . . . 1 1 . . 1 . . . . 1 Total Hacks 254 | . 32 . 35 26 49 28 9 11 28 4 . 3 29 Successful 159 | . 17 . 24 20 25 24 9 4 14 2 . 2 18 Failed 95 | . 15 . 11 6 24 4 . 7 14 2 . 1 11 Catastrophic 18 | . 3 . 1 . 4 . . 1 4 2 . . 3 Database Lockouts . | . . . . . . . . . . . . . . Manual 123 | . 16 . 24 10 25 20 . 4 10 1 . 3 10 Terminals 166 | . 29 . 26 16 34 19 . 3 27 4 . 3 5 Fabricators 3 | . . . . . . . . . . . . . 3 Repair Stations 21 | . 3 . 6 7 5 . . . . . . . . Recycling Units 19 | . . . . . 7 9 . . 1 . . . 2 Scanalyzers 24 | . . . 3 . . . . 6 . . . . 15 Garrison Access 12 | . . . . 3 3 . . 2 . . . . 4 Terminal Hacks 67 | . 10 . 7 6 11 7 9 1 10 2 . 1 3 Record 11 | . . . . . . . 9 . . 2 . . . Part Schematic 5 | . . . 1 . . 4 . . . . . . . Robot Schematic 1 | . . . . . . . . . 1 . . . . Robot Analysis 6 | . 3 . 2 1 . . . . . . . . . Prototype ID Bank 12 | . 2 . 1 . 5 2 . . 1 . . . 1 Open Door 8 | . . . . . 4 . . 1 3 . . . . Branch Access Points 3 | . . . 1 1 . . . . . . . . 1 Terminal Index 5 | . 1 . 1 1 1 . . . . . . . 1 Repair Station Index 1 | . . . . 1 . . . . . . . . . Locate Traps 4 | . 2 . . 1 . . . . 1 . . . . Reprogram Traps 1 | . 1 . . . . . . . . . . . . Registered Components 2 | . . . . 1 . . . . 1 . . . . Zone Layout 8 | . 1 . 1 . 1 1 . . 3 . . 1 . Fabricator Hacks 1 | . . . . . . . . . . . . . 1 Network Status 1 | . . . . . . . . . . . . . 1 Repair Station Hacks 16 | . 1 . 6 6 3 . . . . . . . . Scan Component 9 | . 1 . 3 3 2 . . . . . . . . Repair 7 | . . . 3 3 1 . . . . . . . . Recycling Unit Hacks 1 | . . . . . 1 . . . . . . . . Retrieve Components 1 | . . . . . 1 . . . . . . . . Scanalyzer 15 | . . . 2 . . . . 2 . . . . 11 Insert Component 7 | . . . 1 . . . . 1 . . . . 5 Analyze 8 | . . . 1 . . . . 1 . . . . 6 Garrison Access Hacks 1 | . . . . 1 . . . . . . . . . Seal Access 1 | . . . . 1 . . . . . . . . . Unauthorized Hacks 58 | . 6 . 9 7 10 17 . 1 4 . . 1 3 Terminals 37 | . 6 . 8 6 5 8 . . 3 . . 1 . Assimilate 1 | . . . . 1 . . . . . . . . . Botnet 10 | . . . 3 . . 3 . . 3 . . 1 . Skim 26 | . 6 . 5 5 5 5 . . . . . . . Fabricators . | . . . . . . . . . . . . . . Repair Stations 4 | . . . . 1 . . . . 1 . . . 2 Patch 1 | . . . . 1 . . . . . . . . . Recycling Units 13 | . . . . . 4 9 . . . . . . . Monitor 1 | . . . . . 1 . . . . . . . . Reject 1 | . . . . . 1 . . . . . . . . Recyclers 1 | . . . . . 1 . . . . . . . . Mask 1 | . . . . . 1 . . . . . . . . Tunnel 9 | . . . . . . 9 . . . . . . . Scrapoids 3 | . . . . . . . . . 1 . . . 2 Scanalyzers 3 | . . . 1 . . . . 1 . . . . 1 Extract 3 | . . . 1 . . . . 1 . . . . 1 Garrison Access 1 | . . . . . 1 . . . . . . . . Jam 1 | . . . . . 1 . . . . . . . . Data Cores Recovered . | . . . . . . . . . . . . . . Used . | . . . . . . . . . . . . . . Hacking Detections 58 | . 9 . 8 5 11 5 . 2 9 2 . 1 6 Full Trace Events 4 | . 1 . 1 1 . . . . . . . . 1 Feedback Events . | . . . . . . . . . . . . . . Feedback Blocked . | . . . . . . . . . . . . . . Robot Schematics Acquired 1 | . . . . . . . . . 1 . . . . Robots Built . | . . . . . . . . . . . . . . Authchips . | . . . . . . . . . . . . . . Time . | . . . . . . . . . . . . . . Total Robot Build Rating . | . . . . . . . . . . . . . . Part Schematics Acquired 54 | . . . 16 . . 4 . 8 . . . . 26 Parts Built . | . . . . . . . . . . . . . . Authchips . | . . . . . . . . . . . . . . Time . | . . . . . . . . . . . . . . Total Part Build Rating . | . . . . . . . . . . . . . . Parts Repaired 7 | . . . 3 3 1 . . . . . . . . Time 243 | . . . 78 127 38 . . . . . . . . Parts Recycled . | . . . . . . . . . . . . . . Recycled Matter . | . . . . . . . . . . . . . . Retrieved Matter . | . . . . . . . . . . . . . . Retrieved Components 3 | . . . . . 3 . . . . . . . . Parts Scanalyzed 6 | . . . 1 . . . . 1 . . . . 4 Part Schematics Acquired 6 | . . . 1 . . . . 1 . . . . 4 Parts Damaged 1 | . . . . . . . . . . . . . 1 Bothacking | -11 -10 -10 -9 -8 -8 -8 -8 -6 -6 -6 -6 -6 -5 ------------ Run | Yrd Mat Min Mat Mat Sto Rec Scr Fac Ext Cet Arc Hub Fac Used RIF Installer . | . . . . . . . . . . . . . . Robots Hacked . | . . . . . . . . . . . . . . Non-combat . | . . . . . . . . . . . . . . Combat . | . . . . . . . . . . . . . . Robot Hacks Applied . | . . . . . . . . . . . . . . Relay Couplers Released 3 | . . . . . . . . . . . . . 3 Machine Destruction 3 | . . . . . . . . . . . . . 3 Fabnet Peak Effective % . | . . . . . . . . . . . . . . Robots Rewired 20 | . . . . . . 1 . . 19 . . . . Allies Hacked 1 | . . . . . . . . . . . . . 1 Hacks Repelled . | . . . . . . . . . . . . . . Allies | -11 -10 -10 -9 -8 -8 -8 -8 -6 -6 -6 -6 -6 -5 -------- Run | Yrd Mat Min Mat Mat Sto Rec Scr Fac Ext Cet Arc Hub Fac Total Allies 49 | . . . . 1 . 1 . . 32 5 . . 10 Largest Group 26 | . . . . . . 1 . . 21 26 20 17 7 Highest-Rated Group 1211 | . . . . . . 21 . . 731 1211 901 733 353 Highest-Rated Ally 159 | . . . . . . 21 . . 159 159 96 96 96 Total Orders 17 | . . . . . . 1 . . . 14 2 . . STAY 7 | . . . . . . 1 . . . 5 1 . . FOLLOW 10 | . . . . . . . . . . 9 1 . . Ally Attacks 553 | . . . . . . . . . 164 100 22 113 154 Total Damage 12651 | . . . . . . . . . 3287 2488 510 2662 3704 Kills 92 | . . . . . . . . . 22 14 4 25 27 Allies Corrupted 1 | . . . . . . . . . . . . 1 . Allies Melted . | . . . . . . . . . . . . . . Intel | -11 -10 -10 -9 -8 -8 -8 -8 -6 -6 -6 -6 -6 -5 ------- Run | Yrd Mat Min Mat Mat Sto Rec Scr Fac Ext Cet Arc Hub Fac Robot Analysis Total 6 | . 3 . 2 1 . . . . . . . . . Derelict Logs Recovered 1 | . . 1 . . . . . . . . . . . Drone Launches . | . . . . . . . . . . . . . . Drone Recoveries . | . . . . . . . . . . . . . . Exploration | -11 -10 -10 -9 -8 -8 -8 -8 -6 -6 -6 -6 -6 -5 ------------- Run | Yrd Mat Min Mat Mat Sto Rec Scr Fac Ext Cet Arc Hub Fac Turns Passed 18525 | 2 1869 360 1164 1375 1246 1950 2381 808 2930 1459 322 424 2235 Spaces Moved 7184 | 1 664 177 478 747 519 831 972 266 959 415 126 194 835 Core 90 | . . . . . . . . . . . . . 90 Treads 4845 | . . . . . 337 831 972 266 959 415 126 194 745 Legs 2249 | 1 664 177 478 747 182 . . . . . . . . Wheels . | . . . . . . . . . . . . . . Hover . | . . . . . . . . . . . . . . Flight . | . . . . . . . . . . . . . . Fastest Speed 50 | 120 120 190 120 120 120 162 242 238 238 160 160 160 50 Average Speed 185 | 120 166 190 188 124 148 182 242 238 239 174 160 160 148 Slowest Speed 245 | 120 190 190 190 190 240 242 245 245 245 240 160 240 160 Overloaded Moves . | . . . . . . . . . . . . . . Propulsion Burnouts . | . . . . . . . . . . . . . . Robots Hopped 1 | . . . . . . . . . . . . . 1 Cave-ins Triggered . | . . . . . . . . . . . . . . Exploration Rate (%) 56 | 2 88 35 31 62 84 98 74 8 87 87 79 36 21 Regions Visited 13 Branch Regions 8 Pre-discovered Areas 21 | . 3 . 1 2 3 10 2 . . . . . . Known Exits Taken 10 | . . 1 1 1 1 1 1 1 1 1 . 1 . Unknown Exits Taken 3 | 1 1 . . . . . . . . . 1 . . Scrap Searched 9 | . . 1 . . . . 8 . . . . . . Spaces Dug 1 | . . . . . . . . . . . 1 . . Terrain Destroyed 575 | . . . . . 16 . . . 3 35 7 388 126 Melee . | . . . . . . . . . . . . . . Projectile 60 | . . . . . . . . . 3 12 7 8 30 AOE 515 | . . . . . 16 . . . . 23 . 380 96 Terrain Rammed . | . . . . . . . . . . . . . . Walls Destroyed . | . . . . . . . . . . . . . . Machines Disabled . | . . . . . . . . . . . . . . Actions | -11 -10 -10 -9 -8 -8 -8 -8 -6 -6 -6 -6 -6 -5 --------- Run | Yrd Mat Min Mat Mat Sto Rec Scr Fac Ext Cet Arc Hub Fac Total 11124 | 4 1344 186 646 1095 879 1217 998 368 1385 1051 202 263 1486 Wait 2685 | . 610 . 87 242 234 340 2 39 134 519 35 30 413 Move 7169 | . 663 176 477 746 518 830 971 265 958 414 125 193 833 Hop 1 | . . . . . . . . . . . . . 1 Pick Up 113 | . 11 1 4 12 10 4 13 5 7 17 6 3 20 Fast Attach 45 | . 2 . 6 9 8 2 . 2 3 2 1 . 10 Attach 37 | . 1 . . 5 1 . . 6 2 1 1 3 17 Detach 4 | . . . . . 1 . . 2 . . . . 1 Swap 109 | . 6 . 9 12 12 5 4 7 23 11 2 3 15 Drop 148 | 4 3 1 13 17 20 4 8 4 18 28 6 3 19 Fire 589 | . 48 8 50 52 72 28 . 38 69 31 26 28 139 Melee . | . . . . . . . . . . . . . . Ram . | . . . . . . . . . . . . . . Kick 3 | . . . . . 3 . . . . . . . . Crush 6 | . . . . . . 3 . . 1 . . . 2 Escape Stasis 20 | . . . . . . . . . 14 . . . 6 Rewire 122 | . . . . . . 1 . . 121 . . . . Trap . | . . . . . . . . . . . . . . Miscellaneous 73 | . . . . . . . . . 35 28 . . 10 Route ------- -11/Scrapyard -10/Materials (discovered 5 exits: *Mat x3 / [*Min] / Sub) -10/Mines -9/Materials (discovered 4 exits: *Mat x3 / Min) -8/Materials (discovered 4 exits: *Fac x3 / *Sto) -8/Storage (discovered 2 exits: *Fac / *Rec) -8/Recycling (discovered 2 exits: *Fac / *Scr) -8/Scraptown -6/Factory (discovered 4 exits: Fac / Low x2 / *Ext) -6/Extension (discovered 3 exits: *Fac x2 / *Cet) -6/Cetus (discovered 2 exits: *Fac / *Arc) -6/Archives (discovered 3 exits: *Fac / *Hub x2) -6/Hub_04(d) (discovered 3 exits: *Fac x3) -5/Factory (discovered 2 exits: Upp x2) History --------- Turn | Location | Event 3 | -11/Scrapyard | Discovered new exit (range 0) 3 | -11/Scrapyard | Entered Materials 137 | -10/Materials | Discovered new exit (range 15) 412 | -10/Materials | Discovered new exit (range 13) 573 | -10/Materials | Build established: Scavenger-Mutant 664 | -10/Materials | Discovered new exit (range 14) 746 | -10/Materials | Core integrity fell below 50% 1125 | -10/Materials | Learned 4 Subcaves zone layouts 1299 | -10/Materials | Learned Storage trap positions 1318 | -10/Materials | Identified exit to Materials 1345 | -10/Materials | Learned location of Storage (-8) 1383 | -10/Materials | Identified exit to Subcaves 1493 | -10/Materials | Learned location of Recycling (-8) 1872 | -10/Materials | Entered Mines 1876 | -10/Mines | Met a Derelict bent on vengeance 1912 | -10/Mines | Received a Rocket Launcher from a helpful Derelict 1929 | -10/Mines | Learned Materials trap positions 1982 | -10/Mines | Found a hidden stash of uninstalled traps 2103 | -10/Mines | Core integrity fell below 20% 2154 | -10/Mines | Discovered exit to Materials (range 10) 2232 | -10/Mines | Entered Materials 2232 | -9/Materials | Evolved 2 slots: Propulsion x1, Utility x1 2233 | -9/Materials | Identified exit to Mines 2234 | -9/Materials | Loaded intel: 13 trap records 2612 | -9/Materials | Discovered new exit (range 16) 2699 | -9/Materials | Identified exit to Materials 2722 | -9/Materials | Repaired Aluminum Leg 2749 | -9/Materials | Repaired Aluminum Leg 2756 | -9/Materials | Learned location of 1 exit from Recycling 2777 | -9/Materials | Repaired Propulsion Shielding 2838 | -9/Materials | Learned location of Zion (-7) 2877 | -9/Materials | Learned Storage stockpile data 2900 | -9/Materials | Learned location of 3 exits from Materials 3163 | -9/Materials | Destroyed 8 combat bots 3396 | -9/Materials | Entered another Materials area 3396 | -8/Materials | Evolved 2 slots: Propulsion x1, Utility x1 3397 | -8/Materials | Identified exit to Factory 3397 | -8/Materials | Identified exit to Storage 4008 | -8/Materials | Repaired Imp. Medium Laser 4354 | -8/Materials | Repaired Particle Charger 4523 | -8/Materials | Learned Factory stockpile data 4575 | -8/Materials | Learned Factory security intel 4648 | -8/Materials | Learned location of 1 exit from Lower Caves 4652 | -8/Materials | Repaired Hrd. Medium Armor Plating 4683 | -8/Materials | Learned 4 Factory zone layouts 4705 | -8/Materials | Learned location of Extension (-6) 4730 | -8/Materials | Learned 4 Factory zone layouts 4765 | -8/Materials | Learned location of 1 exit from Extension 4771 | -8/Materials | Entered Storage 4772 | -8/Storage | Identified exit to Recycling 4773 | -8/Storage | Loaded intel: 11 trap records 4861 | -8/Storage | Repaired Particle Charger 5278 | -8/Storage | Destroyed 10 combat bots 5666 | -8/Storage | Found Prototype Protection 5667 | -8/Storage | Identified Lgt. Regenerative Plating 5790 | -8/Storage | Learned Recycling recycling unit intel 5811 | -8/Storage | Learned 2 Lower Caves zone layouts 5824 | -8/Storage | Learned 4 Factory zone layouts 6013 | -8/Storage | Used back door to open Recycling access 6017 | -8/Storage | Entered Recycling 6018 | -8/Recycling | Identified exit to Factory 6019 | -8/Recycling | Loaded intel: 9 recycling unit locations 6095 | -8/Recycling | Build established: Mutant 6737 | -8/Recycling | Destroyed 7 combat bots 7008 | -8/Recycling | Learned location of 1 exit from Storage 7059 | -8/Recycling | Learned Factory trap positions 7102 | -8/Recycling | Learned 2 Storage zone layouts 7134 | -8/Recycling | Learned Factory emergency access door positions 7154 | -8/Recycling | Identified exit to Scraptown 7186 | -8/Recycling | Learned location of 1 exit from Recycling 7902 | -8/Recycling | Scanned before Scraplab entrance 7938 | -8/Recycling | Entered Scraplab 7967 | -8/Recycling | Entered Scraptown 7967 | -8/Scraptown | System corruption cleaned by C-Scrubber 8778 | -8/Scraptown | Visited Assassins FH 8826 | -8/Scraptown | Visited Spacefarers 8845 | -8/Scraptown | Heard Great Nut preacher, LISTEN AND RECITE! 8862 | -8/Scraptown | Visited Symbiants 8915 | -8/Scraptown | Visited Bundlers 9099 | -8/Scraptown | Visited Fellowship of the Rings 9118 | -8/Scraptown | Visited Cyclists 9155 | -8/Scraptown | Visited Awakened 9179 | -8/Scraptown | Visited UFD Registry 9179 | -8/Scraptown | Registered with UFD as "Gravsplitter" 9249 | -8/Scraptown | Entered Cyclist Reading Room 9440 | -8/Scraptown | Visited Junk Repository 9556 | -8/Scraptown | Visited Chapter 10 9604 | -8/Scraptown | Visited Science Testing Area 9687 | -8/Scraptown | Visited Observation Area 9730 | -8/Scraptown | Visited Supply Room 9822 | -8/Scraptown | Visited Scrapoid Research Area 10018 | -8/Scraptown | Visited Scrapoid Pod Storage 10062 | -8/Scraptown | Visited A0-MCA Data Center 10097 | -8/Scraptown | Visited Derelict Rescue Squad 10170 | -8/Scraptown | Given a B+ rating by A0-MCA 10173 | -8/Scraptown | Found A0-MCA's Component Scanner 10333 | -8/Scraptown | Discovered exit to Factory (range 5) 10348 | -8/Scraptown | Entered Factory 10348 | -6/Factory | Evolved 4 slots: Power x1, Utility x3 10349 | -6/Factory | Identified exit to Lower Caves 10350 | -6/Factory | Identified exit to Factory 10351 | -6/Factory | Loaded intel: 114 trap records 11149 | -6/Factory | Discovered new exit (range 5) 11153 | -6/Factory | Identified exit to Extension 11156 | -6/Factory | Entered Extension 11168 | -6/Extension | Disrupted transfer network 11282 | -6/Extension | Rescued a captive Derelict 11989 | -6/Extension | Rescued a captive Derelict 11991 | -6/Extension | Rescued a captive Derelict 12196 | -6/Extension | Build established: Scavenger-Mutant 12456 | -6/Extension | Rescued a captive Derelict 12457 | -6/Extension | Rescued a captive Derelict 12552 | -6/Extension | Rescued a captive Derelict 12613 | -6/Extension | Build established: Commander-Mutant 12877 | -6/Extension | Spotted B-75 Beast 12896 | -6/Extension | Allies destroyed B-75 Beast 12897 | -6/Extension | Spotted B-75 Beast 12908 | -6/Extension | Allies destroyed B-75 Beast 12939 | -6/Extension | Lost 5 allies 13005 | -6/Extension | Discovered exit to Factory (range 4) 13175 | -6/Extension | Build established: Scavenger-Mutant 13524 | -6/Extension | Build established: Commander-Mutant 13534 | -6/Extension | Rescued a captive Derelict 13682 | -6/Extension | Scrapoid reinforcements arrived 13784 | -6/Extension | Lost 3 allies 13913 | -6/Extension | Rescued A7 13980 | -6/Extension | Discovered new exit (range 6) 14064 | -6/Extension | Identified exit to Cetus 14086 | -6/Extension | Entered Cetus 14086 | -6/Cetus | Accompanied by 21 allies (A7) 14091 | -6/Cetus | Acquired a Cetus Manufacturing Module code from A7 14553 | -6/Cetus | Spotted Cetus Guard 14553 | -6/Cetus | Spotted Cetus Guard 14555 | -6/Cetus | Spotted Cetus Guard 14555 | -6/Cetus | Spotted Cetus Guard 14558 | -6/Cetus | Allies destroyed Cetus Guard 14563 | -6/Cetus | Destroyed Cetus Guard 14563 | -6/Cetus | Destroyed Cetus Guard 14564 | -6/Cetus | Destroyed Cetus Guard 14603 | -6/Cetus | System corruption reached 10% 14689 | -6/Cetus | Started Cetus Manufacturing Module 14714 | -6/Cetus | Manufactured an Enhanced Grunt 14739 | -6/Cetus | Manufactured an Enhanced Grunt 14764 | -6/Cetus | Manufactured an Enhanced Grunt 14789 | -6/Cetus | Manufactured an Enhanced Grunt 14814 | -6/Cetus | Manufactured an Enhanced Grunt 14836 | -6/Cetus | Security sweep announced 14895 | -6/Cetus | Escorted A7 to Cetus Mainframe 15226 | -6/Cetus | Discovered new exit (range 15) 15273 | -6/Cetus | Spotted Cetus Guard 15274 | -6/Cetus | Spotted Cetus Guard 15277 | -6/Cetus | Spotted Cetus Guard 15277 | -6/Cetus | Spotted Cetus Guard 15279 | -6/Cetus | Destroyed Cetus Guard 15282 | -6/Cetus | Destroyed Cetus Guard 15285 | -6/Cetus | Destroyed Cetus Guard 15286 | -6/Cetus | Destroyed Cetus Guard 15294 | -6/Cetus | Discovered exit to Factory (range 15) 15302 | -6/Cetus | Met Revision 17 15302 | -6/Cetus | Murdered Revision 17 15402 | -6/Cetus | Murdered A7 15408 | -6/Cetus | Extracted ID and sensor layout for unrecognized location from A7's data core 15517 | -6/Cetus | Identified exit to Archives 15545 | -6/Cetus | Entered Archives 15545 | -6/Archives | Accompanied by 20 allies 15595 | -6/Archives | Unable to access archive contents 15604 | -6/Archives | Discovered new exit (range 16) 15640 | -6/Archives | Discovered exit to Factory (range 15) 15734 | -6/Archives | Discovered new exit (range 13) 15867 | -6/Archives | Entered Hub_04(d) 15867 | -6/Hub_04(d) | Accompanied by 17 allies 15867 | -6/Hub_04(d) | Discovered exit to Factory (range 10) 16076 | -6/Hub_04(d) | Disrupted transfer network 16094 | -6/Hub_04(d) | Discovered exit to Factory (range 5) 16208 | -6/Hub_04(d) | Discovered exit to Factory (range 14) 16254 | -6/Hub_04(d) | Network Hub disabled 16254 | -6/Hub_04(d) | Network Hub disabled 16284 | -6/Hub_04(d) | System corruption reached 30% 16289 | -6/Hub_04(d) | Lost 8 allies 16291 | -6/Hub_04(d) | Entered Factory 16291 | -5/Factory | Accompanied by 4 allies 16291 | -5/Factory | Evolved 2 slots: Utility x1, Weapon x1 16461 | -5/Factory | Identified exit to Upper Caves 16690 | -5/Factory | Build established: Scavenger-Tank 16900 | -5/Factory | Scrapoid reinforcements arrived 16944 | -5/Factory | Lost 5 allies 17063 | -5/Factory | Cargo convoy interrupted 17110 | -5/Factory | Lost 3 allies 17227 | -5/Factory | Destroyed 8 combat bots 17324 | -5/Factory | Scrapoids reinforcements arrived? 17447 | -5/Factory | Garrison activated, responded to threat 17480 | -5/Factory | Lost 5 allies 17631 | -5/Factory | Destroyed 7 combat bots 17791 | -5/Factory | First assault squad dispatched 17964 | -5/Factory | Destroyed 9 combat bots 18258 | -5/Factory | High security lockdown imminent 18305 | -5/Factory | Lost 3 parts (2p1w) 18312 | -5/Factory | Destroyed 7 combat bots 18338 | -5/Factory | High security lockdown engaged 18458 | -5/Factory | System corruption reached 10% 18476 | -5/Factory | Core integrity fell below 50% 18499 | -5/Factory | Lost 9 parts (1p2n4u2w) 18508 | -5/Factory | Core integrity fell below 20% 18526 | -5/Factory | Destroyed by P-70 Sage with High-powered Shock Rifle Last Messages --------------- 18507_ Penetrated by Slug. 18511_ System corrupted: Graphene Brace rejected. 18511_ Acquired Graphene Brace. 18511_ Slug penetrates Wall. 18511_ Penetrated by Slug. 18518_ Slug penetrates Wall. 18519_ Penetrated by Slug. 18521_ Triggered Stasis Trap. 18521_ A bubble of rippling energy engulfs the area. 18521_ Field strength at 94. 18521_ Field strength at 88. 18522_ Slug penetrates Wall. 18522_ Penetrated by Slug. 18522_ Field strength at 68. 18522_ Slug penetrates Wall. 18523_ Field strength at 62. 18524_ Field strength at 56. 18524_ Penetrated by Slug. 18525_ Field strength at 21. 18526_ Field strength at 15. Map ----- +----------------------------------------------------+ | ???????????????# % ???????????????? | | ???????????????# ####### ######??????????????? | | ???????????????# #???##? #???????????????????? | | ???????????????# #???????#???????????????????? | | ???????????????# #???????????????????????????? | | ???????????????# #???????????????????????????? | | ???????????????# #???????????????????????????? | | ???????????????# #???????????????????????????? | | ???????????????# #???????????????????????????? | | ???????????????# #???????????????????????????? | | ???????????????# #???????????????????????????? | | ???????????????# #???????????????????????????? | | ???????????????# #???????????????????????????? | | ????????######## #???????????????????????????? | | ???????## #???????????????????????????? | | ???????# #???????????????????????????? | | ???????#T #???????????????????????????? | | ???????## #???????????????????????????? | | ? pp #???????????##??????????????? | | ??############## pp #?????????""G""?????????????? | | ???????????????# ##########"" ""# ??????????? | | ???????????????# w Y ?????????? | | ???????????????# Y ?????????? | | ???????????""" # Y ????"""""??? | | ???????????""" ; """Y"""???""?F"??? | | ???????????????# @ """ """???""?""??? | | ???????????????###########;### """ """??????????? | | ?????????????????????????? ????????????????????? | | ???????????????????????????* #??"""?"""?"""??????? | | ??????????????????????????? #??"""?"""?"""??????? | | ???????????????????????????? #??"""?"""?"""??????? | | ???????????????????????????? #???????????????????? | | ?????????????????????????????#???????????????????? | | ?????????????????????????????????????????????????? | | ?????????????????????????????????????????????????? | | ?????????????????????????????????????????????????? | | ?????????????????????????????????????????????????? | | ?????????????????????????????????????????????????? | | ?????????????????????????????????????????????????? | | ?????????????????????????????????????????????????? | | ?????????????????????????????????????????????????? | | ?????????????????????????????????????????????????? | | ?????????????????????????????????????????????????? | | ?????????????????????????????????????????????????? | | ?????????????????????????????????????????????????? | | ?????????????????????????????????????????????????? | | ?????????????????????????????????????????????????? | | ?????????????????????????????????????????????????? | | ?????????????????????????????????????????????????? | | ??????????>??????????????????????????????????????? | +----------------------------------------------------+ Best States ------------- Heat Dissipation 95 Energy Generation 45 Energy Capacity 600 Matter Stores 300 Matter Capacity 300 Sight Range 16 Robot Scan Range 15 Terrain Scan Density 10 Armor Coverage 750 Resistance: KI 20 Resistance: TH 20 Resistance: EX 20 Resistance: EM 20 Resistance: I 20 Resistance: S 20 Resistance: P 20 Propulsion Shielding 33 Utility Shielding 66 Evasion (%) 55 Targeting Accuracy 8 Recoil Reduction 4 Particle Charging 15 Offensive Hacking 24 Item Schematics ----------------- Lgt. Nuclear Core | -9/Materials | Scanalyzed Spread Laser | -9/Materials | Extracted Hover Unit | -9/Materials | Extracted Terrain Scanner | -9/Materials | Extracted Sensor Array | -9/Materials | Extracted Lgt. Armor Plating | -9/Materials | Extracted Med. Storage Unit | -9/Materials | Extracted Hrd. Light Armor Plating | -9/Materials | Extracted Arm. Wheel | -9/Materials | Extracted Grenade Launcher | -9/Materials | Extracted Hvy. Hammer | -9/Materials | Extracted Flight Unit | -9/Materials | Extracted VTOL Module | -9/Materials | Extracted Imp. Light Cannon | -9/Materials | Extracted Datajack | -9/Materials | Extracted Imp. Hover Unit | -9/Materials | Hacked Imp. Weapon Shielding | -8/Recycling | Hacked Target Analyzer | -8/Recycling | Hacked Coil Gun | -8/Recycling | Hacked Machine Analyzer | -8/Recycling | Hacked Med. Treads | -6/Factory | Scanalyzed Hardlight Generator | -6/Factory | Extracted Power Amplifier | -6/Factory | Extracted Adv. Weight Redist. System | -6/Factory | Extracted Core Analyzer | -6/Factory | Extracted Stasis Canceller | -6/Factory | Extracted Component Analysis Suite | -6/Factory | Extracted Energy Well | -6/Factory | Extracted Centrium Heavy Treads | -5/Factory | Scanalyzed Imp. Hacking Suite | -5/Factory | Scanalyzed Imp. Cooling System | -5/Factory | Scanalyzed Adv. Variable Charge Gun | -5/Factory | Scanalyzed Imp. Hardlight Generator | -5/Factory | Extracted Arm. Leg | -5/Factory | Extracted Lgt. Fission Core | -5/Factory | Extracted Tesla Rifle | -5/Factory | Extracted Adv. Signal Interpreter | -5/Factory | Extracted Enh. Optical Array | -5/Factory | Extracted Hvy. Reflective Plating | -5/Factory | Extracted Imp. Dynamic Insulation System | -5/Factory | Extracted Hvy. Laser | -5/Factory | Extracted Thermic Laser | -5/Factory | Extracted Imp. Weapon Cycler | -5/Factory | Extracted Variable Charge Gun | -5/Factory | Extracted System Restoration Module | -5/Factory | Extracted Fission Core | -5/Factory | Extracted Imp. Light Armor Plating | -5/Factory | Extracted Imp. Medium Treads | -5/Factory | Extracted Gravmag Array | -5/Factory | Extracted Disruptor Cannon | -5/Factory | Extracted Exp. Targeting Computer | -5/Factory | Extracted Focal Shield | -5/Factory | Extracted Lyr. Light Armor Plating | -5/Factory | Extracted Adv. Hacking Suite | -5/Factory | Extracted Robot Schematics ------------------ B-48 Gladiator | -6/Extension | Hacked Fabricated ------------ Nothing Alien Tech Used ----------------- None Achievements -------------- None Challenges ------------ None Game ------ Seed HellfireThiefSaw Manual? 0 Play Time 02:24:57 Cumulative 380.3 hours Start 2024.09.11 @ 16:33:18 End 2024.09.11 @ 19:48:47 Sessions 3 Manual Loads 0 Difficulty Adventurer Special Mode None Game No. 285 Rogue 63 Adventurer 196 Explorer 26 Win Type - Total 1 Types 1/0/0/0/0/0/0/0/0 Lore% 80 Gallery% 77 Achievement% 68 Wizard Run 0 Options --------- Layout 2 ASCII 0 Keyboard 0 Movement Mouse Keybinds 0 Fullscreen 0 Font 18/CogNarrow Map View 64x51 Zoom Use 0% Tactical HUD 1 Map Filters NONE Filters BRIGHTNESS(115)|SATURATION(100)|LOW_CONTRAST(0,16,30) Steam 1 RUN: 49841fa9-f87d-44a5-aafb-7a4da1c23d7f